fUSD/lending_fUSD_20240607
["ID","MTS","AMOUNT","RATE_DAILY","PERIOD"]
[328763974,1717775435703,-757.97,0.00029863,4]
[328763975,1717775435713,-757.97,0.00029863,4]
[328763976,1717775435723,-503.62,0.00029863,4]
[328763977,1717775435733,-503.62,0.00029863,4]
[328763978,1717775435742,-500.0,0.00029863,4]
[328763979,1717775435752,-500.0,0.00029863,4]
[328763980,1717775435762,-868.76,0.00029863,4]
[328763981,1717775435771,-868.76,0.00029863,4]
[328763982,1717775435782,-500.0,0.00029863,4]
[328763983,1717775435791,-500.0,0.00029863,4]
[328763984,1717775435801,-500.0,0.00029863,4]
[328763985,1717775435811,-178.84,0.00029863,4]
[328763986,1717775435820,-500.0,0.00029863,4]
[328763987,1717775435829,-500.0,0.00029863,4]
[328763988,1717775435839,-500.0,0.00029863,4]
[328763989,1717775435848,-500.0,0.00029863,4]
[328763990,1717775435857,-499.50851822,0.00029863,4]
[328763991,1717775435866,-500.0,0.00029863,4]
[328763992,1717775435875,-500.0,0.00029863,4]
[328763993,1717775435885,-500.0,0.00029863,4]
[328763994,1717775435894,-500.0,0.00029863,4]
[328763995,1717775435903,-500.0,0.00029863,4]
[328763996,1717775435913,-500.0,0.00029863,4]
[328763997,1717775435922,-500.0,0.00029863,4]
[328763998,1717775435932,-500.0,0.00029863,4]
[328763999,1717775435942,-500.0,0.00029863,4]
[328764000,1717775435951,-500.0,0.00029863,4]
[328764001,1717775435961,-500.0,0.00029863,4]
[328764002,1717775435971,-500.0,0.00029863,4]
[328764003,1717775435980,-500.0,0.00029863,4]
[328764004,1717775435990,-500.0,0.00029863,4]
[328764005,1717775436000,-500.0,0.00029863,4]
[328764006,1717775436009,-186.34,0.00029863,4]
[328764007,1717775436019,-564.11,0.00029863,4]
[328764008,1717775436029,-500.0,0.00029863,4]
[328764009,1717775436038,-500.0,0.00029863,4]
[328764010,1717775436048,-500.0,0.00029863,4]
[328764011,1717775436058,-500.0,0.00029863,4]
[328764012,1717775436067,-500.0,0.00029863,4]
[328764013,1717775436077,-500.0,0.00029863,4]
[328764014,1717775436086,-520.21,0.00029863,4]
[328764015,1717775436096,-520.21,0.00029863,4]
[328764016,1717775436106,-500.0,0.00029863,4]
[328764017,1717775436116,-500.0,0.00029863,4]
[328764018,1717775436126,-500.0,0.00029863,4]
[328764019,1717775436135,-500.0,0.00029863,4]
[328764020,1717775436145,-500.0,0.00029863,4]
[328764021,1717775436155,-500.0,0.00029863,4]
[328764022,1717775436164,-500.0,0.00029863,4]
[328764023,1717775436174,-187.08,0.00029863,4]
[328764024,1717775436183,-500.0,0.00029863,4]
[328764025,1717775436193,-500.0,0.00029863,4]
[328764026,1717775436203,-500.0,0.00029863,4]
[328764027,1717775436212,-500.0,0.00029863,4]
[328764028,1717775436222,-500.0,0.00029863,4]
[328764029,1717775436231,-500.0,0.00029863,4]
[328764030,1717775436241,-500.0,0.00029863,4]
[328764031,1717775436250,-510.04903407,0.00029863,4]
[328764032,1717775436260,-699.8,0.00029863,4]
[328764033,1717775436270,-699.8,0.00029863,4]
[328764034,1717775436284,-500.0,0.00029863,4]
[328764035,1717775436294,-699.8,0.00029863,4]
[328764036,1717775436303,-516.74502461,0.00029863,4]
[328764037,1717775436313,-500.0,0.00029863,4]
[328764038,1717775436324,-500.0,0.00029863,4]
[328764039,1717775436334,-500.0,0.00029863,4]
[328764040,1717775436344,-237.15,0.00029863,4]
[328764041,1717775436354,-500.0,0.00029863,4]
[328764042,1717775436367,-500.0,0.00029863,4]
[328764043,1717775436377,-500.0,0.00029863,4]
[328764044,1717775436386,-500.0,0.00029863,4]
[328764045,1717775436396,-1695.8,0.00029863,4]
[328764046,1717775436405,-1695.8,0.00029863,4]
[328764047,1717775436414,-500.0,0.00029863,4]
[328764048,1717775436423,-500.0,0.00029863,4]
[328764049,1717775436433,-574.16,0.00029863,4]
[328764050,1717775436442,-574.16,0.00029863,4]
[328764051,1717775436452,-500.0,0.00029863,4]
[328764052,1717775436461,-534.94488152,0.00029863,4]
[328764053,1717775436471,-500.0,0.00029863,4]
[328764054,1717775436480,-896.35,0.00029863,4]
[328764055,1717775436490,-500.0,0.00029863,4]
[328764056,1717775436500,-896.35,0.00029863,4]
[328764057,1717775436510,-500.0,0.00029863,4]
[328764058,1717775436519,-896.35,0.00029863,4]
[328764059,1717775436529,-223.04,0.00029863,4]
[328764060,1717775436539,-859.23,0.00029863,4]
[328764061,1717775436550,-859.23,0.00029863,4]
[328764062,1717775436559,-859.23,0.00029863,4]
[328764063,1717775436570,-500.0,0.00029863,4]
[328764064,1717775436580,-500.0,0.00029863,4]
[328764065,1717775436590,-500.0,0.00029863,4]
[328764066,1717775436600,-500.0,0.00029863,4]
[328764067,1717775436609,-500.0,0.00029863,4]
[328764068,1717775436619,-500.0,0.00029863,4]
[328764069,1717775436629,-500.0,0.00029863,4]
[328764070,1717775436639,-500.0,0.00029863,4]
[328764071,1717775436649,-500.0,0.00029863,4]
[328764072,1717775436659,-178.55573842,0.00029863,4]
[328764073,1717775436669,-500.0,0.00029863,4]
[328764074,1717775436679,-500.0,0.00029863,4]
[328764075,1717775436689,-500.0,0.00029863,4]
[328764076,1717775436698,-238.59,0.00029863,4]
[328764077,1717775436708,-500.0,0.00029863,4]
[328764078,1717775436717,-500.0,0.00029863,4]
[328764079,1717775436726,-500.0,0.00029863,4]
[328764080,1717775436736,-500.0,0.00029863,4]
[328764081,1717775436746,-342.03,0.00029863,4]
[328764082,1717775436756,-500.0,0.00029863,4]
[328764083,1717775436765,-500.0,0.00029863,4]
[328764084,1717775436775,-500.0,0.00029863,4]
[328764085,1717775436786,-500.0,0.00029863,4]
[328764086,1717775436796,-500.0,0.00029863,4]
[328764087,1717775436806,-500.0,0.00029863,4]
[328764088,1717775436815,-500.0,0.00029863,4]
[328764089,1717775436825,-500.0,0.00029863,4]
[328764090,1717775436834,-500.0,0.00029863,4]
[328764091,1717775436845,-500.0,0.00029863,4]
[328764092,1717775436855,-525.39,0.00029863,4]
[328764093,1717775436864,-500.0,0.00029863,4]
[328764094,1717775436874,-500.0,0.00029863,4]
[328764095,1717775436885,-500.0,0.00029863,4]
[328764096,1717775436895,-500.0,0.00029863,4]
[328764097,1717775436905,-500.0,0.00029863,4]
[328764098,1717775436915,-500.0,0.00029863,4]
[328764099,1717775436926,-925.49,0.00029863,4]
[328764100,1717775436935,-925.49,0.00029863,4]
[328764101,1717775436945,-1203.41,0.00029863,4]
[328764102,1717775436954,-1203.41,0.00029863,4]
[328764103,1717775436964,-1203.41,0.00029863,4]
[328764104,1717775436973,-500.0,0.00029863,4]
[328764105,1717775436983,-500.0,0.00029863,4]
[328764106,1717775436992,-556.78,0.00029863,4]
[328764107,1717775437002,-500.0,0.00029863,4]
[328764108,1717775437012,-500.0,0.00029863,4]
[328764109,1717775437021,-574.10664084,0.00029863,4]
[328764110,1717775437032,-617.1,0.00029863,4]
[328764111,1717775437042,-500.0,0.00029863,4]
[328764112,1717775437052,-500.0,0.00029863,4]
[328764113,1717775437062,-500.0,0.00029863,4]
[328764114,1717775437071,-500.0,0.00029863,4]
[328764115,1717775437081,-500.0,0.00029863,4]
[328764116,1717775437091,-500.0,0.00029863,4]
[328764117,1717775437100,-500.0,0.00029863,4]
[328764118,1717775437110,-500.0,0.00029863,4]
[328764119,1717775437119,-500.0,0.00029863,4]
[328764120,1717775437128,-500.0,0.00029863,4]
[328764121,1717775437138,-500.0,0.00029863,4]
[328764122,1717775437148,-500.0,0.00029863,4]
[328764123,1717775437157,-500.0,0.00029863,4]
[328764124,1717775437167,-500.0,0.00029863,4]
[328764125,1717775437176,-500.0,0.00029863,4]
[328764126,1717775437185,-500.0,0.00029863,4]
[328764127,1717775437195,-295.87338244,0.00029863,4]
[328764128,1717775437205,-500.0,0.00029863,4]
[328764129,1717775437215,-500.0,0.00029863,4]
[328764130,1717775437225,-500.0,0.00029863,4]
[328764131,1717775437234,-500.0,0.00029863,4]
[328764132,1717775437244,-414.43,0.00029863,4]
[328764133,1717775437254,-500.0,0.00029863,4]
[328764134,1717775437264,-500.0,0.00029863,4]
[328764135,1717775437279,-500.0,0.00029863,4]
[328764136,1717775437288,-2071.58,0.00029863,4]
[328764137,1717775437298,-500.0,0.00029863,4]
[328764138,1717775437307,-2071.58,0.00029863,4]
[328764139,1717775437319,-500.0,0.00029863,4]
[328764140,1717775437328,-500.0,0.00029863,4]
[328764141,1717775437337,-634.05810766,0.00029863,4]
[328764142,1717775437346,-814.6,0.00029863,4]
[328764144,1717775437358,-814.6,0.00029863,4]
[328764145,1717775437368,-500.0,0.00029863,4]
[328764147,1717775437378,-1186.17,0.00029863,4]
[328764149,1717775437387,-500.0,0.00029863,4]
[328764151,1717775437396,-1186.17,0.00029863,4]
[328764153,1717775437406,-500.0,0.00029863,4]
[328764155,1717775437415,-605.78,0.00029863,4]
[328764157,1717775437425,-500.0,0.00029863,4]
[328764159,1717775437435,-605.78,0.00029863,4]
[328764160,1717775437446,-500.0,0.00029863,4]
[328764161,1717775437455,-605.78,0.00029863,4]
[328764162,1717775437465,-500.0,0.00029863,4]
[328764163,1717775437476,-500.0,0.00029863,4]
[328764165,1717775437488,-500.0,0.00029863,4]
[328764166,1717775437499,-500.0,0.00029863,4]
[328764169,1717775437509,-943.03,0.00029863,4]
[328764170,1717775437520,-500.0,0.00029863,4]
[328764171,1717775437530,-943.03,0.00029863,4]
[328764172,1717775437540,-500.0,0.00029863,4]
[328764173,1717775437550,-500.0,0.00029863,4]
[328764174,1717775437560,-943.03,0.00029863,4]
[328764175,1717775437569,-552.05018326,0.00029863,4]
[328764176,1717775437579,-648.69,0.00029863,4]
[328764177,1717775437589,-4273.48,0.00029863,4]
[328764178,1717775437598,-4273.48,0.00029863,4]
[328764179,1717775437607,-500.0,0.00029863,4]
[328764180,1717775437616,-500.0,0.00029863,4]
[328764181,1717775437627,-320.48,0.00029863,4]
[328764182,1717775437637,-500.0,0.00029863,4]
[328764183,1717775437647,-500.0,0.00029863,4]
[328764184,1717775437657,-500.0,0.00029863,4]
[328764185,1717775437668,-500.0,0.00029863,4]
[328764186,1717775437678,-500.0,0.00029863,4]
[328764187,1717775437687,-500.0,0.00029863,4]
[328764188,1717775437697,-500.0,0.00029863,4]
[328764189,1717775437706,-500.0,0.00029863,4]
[328764190,1717775437715,-500.0,0.00029863,4]
[328764191,1717775437725,-496.10808885,0.00029863,4]
[328764192,1717775437734,-624.77515661,0.00029863,4]
[328764193,1717775437744,-500.0,0.00029863,4]
[328764194,1717775437753,-500.0,0.00029863,4]
[328764195,1717775437763,-500.0,0.00029863,4]
[328764196,1717775437772,-500.0,0.00029863,4]
[328764197,1717775437784,-1338.25,0.00029863,4]
[328764198,1717775437794,-500.0,0.00029863,4]
[328764199,1717775437803,-1338.25,0.00029863,4]
[328764200,1717775437812,-500.0,0.00029863,4]
[328764201,1717775437821,-500.0,0.00029863,4]
[328764202,1717775437830,-500.0,0.00029863,4]
[328764203,1717775437839,-500.0,0.00029863,4]
[328764204,1717775437849,-500.0,0.00029863,4]
[328764205,1717775437860,-500.0,0.00029863,4]
[328764206,1717775437870,-639.07,0.00029863,4]
[328764207,1717775437880,-639.07,0.00029863,4]
[328764208,1717775437889,-500.0,0.00029863,4]
[328764209,1717775437899,-500.0,0.00029863,4]
[328764210,1717775437909,-500.0,0.00029863,4]
[328764211,1717775437918,-500.0,0.00029863,4]
[328764212,1717775437927,-500.0,0.00029863,4]
[328764213,1717775437937,-500.0,0.00029863,4]
[328764214,1717775437946,-500.0,0.00029863,4]
[328764215,1717775437956,-500.0,0.00029863,4]
[328764216,1717775437966,-546.26,0.00029863,4]
[328764217,1717775437975,-500.0,0.00029863,2]
[328764218,1717775437985,-546.26,0.00029863,4]
[328764219,1717775437994,-500.0,0.00029863,2]
[328764220,1717775438004,-500.0,0.00029863,4]
[328764221,1717775438013,-500.0,0.00029863,4]
[328764222,1717775438022,-500.0,0.00029863,4]
[328764223,1717775438034,-500.0,0.00029863,4]
[328764224,1717775438043,-500.0,0.00029863,4]
[328764225,1717775438053,-500.0,0.00029863,4]
[328764226,1717775438063,-500.0,0.00029863,4]
[328764227,1717775438073,-500.0,0.00029863,4]
[328764228,1717775438083,-500.0,0.00029863,4]
[328764229,1717775438093,-500.0,0.00029863,4]
[328764230,1717775438102,-2257.2,0.00029863,4]
[328764231,1717775438112,-500.0,0.00029863,4]
[328764232,1717775438122,-500.0,0.00029863,4]
[328764233,1717775438132,-500.0,0.00029863,4]
[328764234,1717775438142,-2257.2,0.00029863,4]
[328764235,1717775438152,-3190.83,0.00029863,4]
[328764236,1717775438162,-500.0,0.00029863,4]
[328764237,1717775438173,-3190.83,0.00029863,4]
[328764239,1717775438183,-500.0,0.00029863,4]
[328764241,1717775438192,-500.0,0.00029863,4]
[328764243,1717775438202,-1745.15,0.00029863,4]
[328764245,1717775438212,-1745.15,0.00029863,4]
[328764247,1717775438222,-500.0,0.00029863,4]
[328764249,1717775438231,-3091.65,0.00029863,4]
[328764251,1717775438241,-3091.65,0.00029863,4]
[328764253,1717775438251,-500.0,0.00029863,4]
[328764255,1717775438260,-3091.65,0.00029863,4]
[328764257,1717775438270,-500.0,0.00029869,2]
[328764259,1717775438284,-500.0,0.00029869,2]
[328764261,1717775438293,-377.80937044,0.00029869,2]
[328764263,1717775438304,-500.0,0.00029873,2]
[328764265,1717775438314,-500.0,0.00029873,2]
[328764267,1717775438325,-500.0,0.00029873,2]
[328764269,1717775438334,-500.0,0.00029873,2]
[328764271,1717775438344,-500.0,0.00029873,2]
[328764273,1717775438354,-724.0,0.00029873,2]
[328764275,1717775438365,-213.43082969,0.00029887,2]
[328764277,1717775438375,-834.76,0.00029894,4]
[328764279,1717775438387,-757.97,0.00029894,4]
[328764281,1717775438396,-500.0,0.00029894,4]
[328764283,1717775438406,-868.76,0.00029894,4]
[328764285,1717775438415,-500.0,0.00029894,4]
[328764287,1717775438425,-500.0,0.00029894,4]
[328764289,1717775438434,-500.0,0.00029894,4]
[328764291,1717775438444,-500.0,0.00029894,4]
[328764293,1717775438455,-500.0,0.00029894,4]
[328764295,1717775438464,-500.0,0.00029894,4]
[328764297,1717775438473,-500.0,0.00029894,4]
[328764299,1717775438483,-1695.8,0.00029894,4]
[328764301,1717775438493,-500.0,0.00029894,4]
[328764303,1717775438502,-500.0,0.00029894,4]
[328764305,1717775438512,-500.0,0.00029894,4]
[328764306,1717775438521,-500.0,0.00029894,4]
[328764308,1717775438532,-814.6,0.00029894,4]
[328764310,1717775438542,-1186.17,0.00029894,4]
[328764313,1717775438553,-500.0,0.00029894,4]
[328764315,1717775438563,-4273.48,0.00029894,4]
[328764317,1717775438573,-1338.25,0.00029894,4]
[328764319,1717775438586,-500.0,0.00029894,4]
[328764335,1717775438736,-2257.2,0.00029894,4]
[328764337,1717775438747,-500.0,0.00029894,4]
[328764339,1717775438756,-500.0,0.00029895,4]
[328764341,1717775438767,-500.0,0.00029895,4]
[328764343,1717775438777,-500.0,0.00029895,4]
[328764345,1717775438786,-725.09,0.00029895,4]
[328764346,1717775438796,-725.09,0.00029895,4]
[328764348,1717775438806,-500.0,0.00029895,4]
[328764351,1717775438816,-500.0,0.00029895,4]
[328764353,1717775438826,-500.0,0.00029895,4]
[328764355,1717775438836,-500.0,0.00029895,4]
[328764357,1717775438845,-500.0,0.00029895,4]
[328764359,1717775438856,-500.0,0.00029895,4]
[328764361,1717775438865,-500.0,0.00029895,4]
[328764362,1717775438875,-500.0,0.00029895,4]
[328764365,1717775438885,-500.0,0.00029895,4]
[328764366,1717775438895,-500.0,0.00029895,4]
[328764368,1717775438905,-500.0,0.00029895,4]
[328764370,1717775438915,-500.0,0.00029895,4]
[328764372,1717775438924,-500.0,0.00029895,4]
[328764374,1717775438934,-500.0,0.00029895,4]
[328764376,1717775438943,-1070.05,0.00029895,4]
[328764378,1717775438953,-1070.05,0.00029895,4]
[328764380,1717775438963,-598.18,0.00029895,4]
[328764382,1717775438972,-1041.31,0.00029895,4]
[328764384,1717775438982,-1041.31,0.00029895,4]
[328764386,1717775438992,-500.0,0.00029895,4]
[328764388,1717775439002,-500.0,0.00029895,4]
[328764390,1717775439011,-500.0,0.00029895,4]
[328764392,1717775439021,-155.0,0.00029896,5]
[328764394,1717775439031,-1818.51367226,0.00029898,2]
[328764396,1717775439041,-185.61446945,0.00029898,2]
[328764398,1717775439051,-824.30843045,0.00029898,2]
[328764400,1717775439060,-1818.51367219,0.00029898,2]
[328764402,1717775439071,-1818.51367219,0.00029898,2]
[328764404,1717775439082,-1818.51367219,0.00029899,2]
[328764406,1717775439092,-1818.51367219,0.00029899,2]
[328764408,1717775439102,-1818.51367219,0.00029899,2]
[328764410,1717775439113,-169.98125822,0.00029899,2]
[328764412,1717775439122,-1001.2254,0.00029899,2]
[328764414,1717775439132,-284.4012679,0.00029899,2]
[328764416,1717775439142,-1818.51367219,0.00029899,2]
[328764418,1717775439152,-1818.51367219,0.00029899,2]
[328764420,1717775439162,-1818.51367219,0.00029899,2]
[328764422,1717775439172,-1818.51367219,0.000299,2]
[328764424,1717775439183,-1818.51367219,0.000299,2]
[328764426,1717775439192,-345.0,0.000299,2]
[328764428,1717775439203,-195.0,0.000299,14]
[328764430,1717775439213,-1818.51367219,0.000299,2]
[328764433,1717775439223,-1093.41188266,0.000299,15]
[328764435,1717775439233,-278.13569659,0.000299,15]
[328764437,1717775439243,-256.74,0.000299,7]
[328764439,1717775439253,-171.07796834,0.000299,7]
[328764441,1717775439263,-171.07796834,0.000299,7]
[328764443,1717775439274,-171.07796834,0.000299,7]
[328764445,1717775439287,-171.07796834,0.000299,7]
[328764447,1717775439298,-171.07796834,0.000299,7]
[328764449,1717775439308,-171.57,0.000299,7]
[328764452,1717775439319,-150.0,0.000299,6]
[328764455,1717775439329,-500.0,0.00029918,4]
[328764458,1717775439339,-500.0,0.00029918,4]
[328764461,1717775439348,-500.0,0.00029918,4]
[328764464,1717775439359,-500.0,0.00029918,4]
[328764467,1717775439369,-500.86,0.00029918,4]
[328764469,1717775439380,-500.0,0.00029918,4]
[328764471,1717775439389,-500.0,0.00029918,4]
[328764473,1717775439398,-500.0,0.00029918,4]
[328764474,1717775439408,-500.0,0.00029918,4]
[328764476,1717775439418,-500.0,0.00029918,4]
[328764479,1717775439428,-500.0,0.00029918,4]
[328764482,1717775439438,-500.0,0.00029918,4]
[328764485,1717775439448,-304.03385016,0.00029918,4]
[328764488,1717775439458,-500.0,0.00029918,4]
[328764491,1717775439468,-500.0,0.00029918,4]
[328764493,1717775439478,-500.0,0.00029918,4]
[328764495,1717775439488,-500.0,0.00029918,4]
[328764497,1717775439498,-500.0,0.00029918,4]
[328764499,1717775439508,-500.0,0.00029918,4]
[328764501,1717775439519,-338.03697319,0.00029918,4]
[328764503,1717775439530,-551.35951537,0.00029918,4]
[328764505,1717775439540,-500.0,0.00029918,2]
[328764507,1717775439551,-500.0,0.00029918,4]
[328764509,1717775439563,-515.71637087,0.00029918,4]
[328764511,1717775439573,-500.0,0.00029918,4]
[328764513,1717775439584,-500.0,0.00029919,4]
[328764515,1717775439595,-500.0,0.00029919,4]
[328764517,1717775439605,-500.0,0.00029919,4]
[328764519,1717775439615,-500.0,0.00029919,4]
[328764521,1717775439626,-500.0,0.00029919,4]
[328764523,1717775439636,-556.64842852,0.00029919,4]
[328764525,1717775439647,-500.0,0.00029919,4]
[328764527,1717775439657,-650.45,0.00029919,4]
[328764529,1717775439667,-500.0,0.00029919,4]
[328764531,1717775439678,-500.0,0.00029919,4]
[328764533,1717775439688,-500.0,0.00029919,4]
[328764535,1717775439699,-500.0,0.00029919,4]
[328764537,1717775439709,-154.33602077,0.0002992,2]
[328764540,1717775439720,-500.0,0.00029932,4]
[328764542,1717775439731,-332.44,0.00029932,4]
[328764544,1717775439742,-500.0,0.00029932,4]
[328764545,1717775439752,-2270.62,0.00029932,4]
[328764547,1717775439763,-500.0,0.00029932,4]
[328764549,1717775439774,-500.0,0.00029932,4]
[328764550,1717775439786,-640.33202609,0.00029932,4]
[328764551,1717775439797,-500.0,0.00029932,4]
[328764552,1717775439807,-503.62,0.00029932,4]
[328764553,1717775439817,-500.0,0.00029932,4]
[328764554,1717775439828,-500.0,0.00029932,4]
[328764555,1717775439838,-500.0,0.00029932,4]
[328764556,1717775439848,-520.21,0.00029932,4]
[328764557,1717775439859,-500.0,0.00029932,4]
[328764558,1717775439869,-500.0,0.00029932,4]
[328764559,1717775439880,-438.22,0.00029932,4]
[328764561,1717775439890,-574.16,0.00029932,4]
[328764563,1717775439901,-500.0,0.00029932,4]
[328764566,1717775439912,-925.49,0.00029932,4]
[328764568,1717775439923,-500.0,0.00029932,4]
[328764570,1717775439934,-500.0,0.00029932,4]
[328764572,1717775439944,-2071.58,0.00029932,4]
[328764574,1717775439955,-500.0,0.00029932,4]
[328764576,1717775439965,-500.0,0.00029932,4]
[328764578,1717775439975,-500.0,0.00029932,4]
[328764579,1717775439985,-500.0,0.00029932,4]
[328764581,1717775439995,-500.0,0.00029932,4]
[328764583,1717775440005,-639.07,0.00029932,4]
[328764585,1717775440016,-585.30405807,0.00029932,4]
[328764587,1717775440026,-500.0,0.00029932,4]
[328764589,1717775440037,-546.26,0.00029932,4]
[328764592,1717775440048,-500.0,0.00029932,4]
[328764594,1717775440057,-206.36903581,0.00029932,4]
[328764596,1717775440067,-3190.83,0.00029932,4]
[328764598,1717775440077,-638.98,0.00029932,4]
[328764600,1717775440088,-1745.15,0.00029932,4]
[328764602,1717775440098,-16084.12345057,0.00029933,2]
[328764669,1717775440604,-226.6238354,0.000201,2]
[328764672,1717775440615,-1523.28,0.00029895,4]
[328764675,1717775440625,-1523.28,0.00029895,4]
[328764678,1717775440635,-6403.22252165,0.00029933,2]
[328764684,1717775440667,-387.38,0.0002789,10]
[328764687,1717775440678,-4158.83102778,0.00029933,2]
[328764689,1717775440689,-300.903,0.00029936,2]
[328764691,1717775440699,-4184.68397942,0.00029971,2]
[328764693,1717775440709,-155.24905604,0.00029986,2]
[328764695,1717775440719,-163.87867132,0.00029989,2]
[328764697,1717775440729,-500.0,0.00029993,4]
[328764700,1717775440739,-1201.84707449,0.00029994,2]
[328764703,1717775440749,-2933.86499,0.00029994,2]
[328764706,1717775440759,-500.0,0.00029996,4]
[328764709,1717775440768,-500.0,0.00029996,4]
[328764713,1717775440779,-500.0,0.00029996,4]
[328764714,1717775440791,-500.0,0.00029996,4]
[328764716,1717775440801,-500.86,0.00029996,4]
[328764718,1717775440811,-500.0,0.00029996,4]
[328764720,1717775440821,-500.0,0.00029996,4]
[328764722,1717775440831,-500.0,0.00029996,4]
[328764724,1717775440841,-586.19830321,0.00029996,4]
[328764726,1717775440851,-458.1411335,0.00029996,4]
[328764728,1717775440861,-500.0,0.00029996,4]
[328764730,1717775440871,-500.0,0.00029996,4]
[328764732,1717775440881,-500.0,0.00029996,4]
[328764734,1717775440891,-500.0,0.00029996,4]
[328764736,1717775440900,-500.0,0.00029996,4]
[328764738,1717775440910,-500.0,0.00029996,4]
[328764740,1717775440920,-299.84882366,0.00029996,4]
[328764742,1717775440930,-314.23824392,0.00029996,4]
[328764744,1717775440939,-551.05154744,0.00029996,4]
[328764746,1717775440949,-500.0,0.00029996,2]
[328764748,1717775440959,-625.91627403,0.00029996,4]
[328764750,1717775440968,-834.76,0.00029996,4]
[328764752,1717775440978,-757.97,0.00029996,4]
[328764754,1717775440987,-500.0,0.00029996,4]
[328764756,1717775440997,-868.76,0.00029996,4]
[328764758,1717775441007,-500.0,0.00029996,4]
[328764760,1717775441017,-500.0,0.00029996,4]
[328764762,1717775441026,-500.0,0.00029996,4]
[328764764,1717775441036,-500.0,0.00029996,4]
[328764766,1717775441045,-500.0,0.00029996,4]
[328764768,1717775441055,-500.0,0.00029996,4]
[328764770,1717775441064,-500.0,0.00029996,4]
[328764772,1717775441073,-500.0,0.00029996,4]
[328764774,1717775441083,-699.8,0.00029996,4]
[328764776,1717775441092,-500.0,0.00029996,4]
[328764778,1717775441101,-1695.8,0.00029996,4]
[328764780,1717775441111,-896.35,0.00029996,4]
[328764782,1717775441120,-859.23,0.00029996,4]
[328764784,1717775441130,-500.0,0.00029996,4]
[328764786,1717775441139,-500.0,0.00029996,4]
[328764788,1717775441149,-500.0,0.00029996,4]
[328764790,1717775441158,-500.0,0.00029996,4]
[328764792,1717775441168,-500.0,0.00029996,4]
[328764794,1717775441177,-500.0,0.00029996,4]
[328764796,1717775441187,-500.0,0.00029996,4]
[328764798,1717775441197,-1203.41,0.00029996,4]
[328764800,1717775441206,-329.57,0.00029996,4]
[328764802,1717775441216,-500.0,0.00029996,4]
[328764805,1717775441226,-273.42126951,0.00029996,4]
[328764807,1717775441236,-500.0,0.00029996,4]
[328764809,1717775441246,-500.0,0.00029996,4]
[328764811,1717775441255,-626.45,0.00029996,4]
[328764813,1717775441265,-814.6,0.00029996,4]
[328764815,1717775441274,-500.0,0.00029996,4]
[328764817,1717775441288,-1186.17,0.00029996,4]
[328764819,1717775441298,-605.78,0.00029996,4]
[328764821,1717775441307,-500.0,0.00029996,4]
[328764823,1717775441317,-943.03,0.00029996,4]
[328764825,1717775441328,-500.0,0.00029996,4]